bitfinex-derivatives/quotes_ETHF0:USTF0_20250426
["timestamp","ask_amount","ask_price","bid_price","bid_amount"]
[1745663112530,5.308,1809.4,1809.3,2.73664]
[1745663116218,6.41298,1809.4,1809.2,5.15386]
[1745663116419,1.6962,1809.3,1809.2,5.15386]
[1745663116826,1.6962,1809.3,1809.2,6.87576]
[1745663117228,8.10924,1809.3,1809.2,3.2078]
[1745663119937,7.0042,1809.3,1809.0,3.812]
[1745663120142,3.54162,1809.2,1809.0,4.91719]
[1745663120436,1.6651,1809.1,1809.0,45.71719]
[1745663121139,6.9731,1809.1,1809.0,45.71719]
[1745663122634,5.308,1809.1,1809.0,47.36849]
[1745663123141,3.2078,1809.4,1809.3,1.10504]
[1745663123639,4.31278,1809.4,1809.3,1.10504]
[1745663123941,4.31278,1809.4,1809.2,1.93946]
[1745663124136,6.41298,1809.4,1809.2,1.93946]
[1745663124828,5.308,1809.4,1809.2,0.8344]
[1745663125033,1.10504,1809.3,1809.2,0.8344]
[1745663125232,6.41302,1809.4,1809.2,1.9395]
[1745663126627,1.10504,1809.3,1809.2,0.8344]
[1745663127332,6.41304,1809.3,1809.2,0.8344]
[1745663127530,1.1051,1809.2,1809.1,3.2078]
[1745663127737,1.10516,1809.1,1809.0,4.6457]
[1745663128243,6.41316,1809.1,1809.0,3.812]
[1745663128533,1.10527,1809.0,1808.8,1.8979]
[1745663128739,5.308,1809.1,1808.8,0.7926]
[1745663128938,1.10527,1809.0,1808.8,1.89795]
[1745663129640,6.41321,1809.1,1808.9,1.10529]
[1745663129942,6.41321,1809.1,1808.9,1.10524]
[1745663130141,6.41321,1809.1,1808.9,1.93174]
[1745663131034,5.308,1809.1,1808.9,0.8265]
[1745663131235,5.308,1809.1,1808.9,4.0343]
[1745663131444,5.308,1809.1,1809.0,2.80962]
[1745663132538,6.41316,1809.1,1808.9,5.13955]
[1745663132842,1.10522,1809.0,1808.9,0.8265]
[1745663133040,0.8203,1809.0,1808.9,1.93179]
[1745663133244,6.1283,1809.0,1808.9,1.93179]
[1745663133543,5.308,1809.0,1808.9,5.13959]
[1745663133739,6.41322,1809.0,1808.8,1.89789]
[1745663133937,6.41322,1809.0,1808.9,1.90719]
[1745663134135,5.308,1809.0,1808.9,1.90719]
[1745663134546,6.41322,1809.0,1808.9,0.8019]
[1745663134839,1.10529,1808.9,1808.8,0.7926]
[1745663135043,1.10529,1808.9,1808.8,1.5945]
[1745663136245,6.41329,1808.9,1808.8,1.5945]
[1745663136545,8.12639,1808.9,1808.8,2.69985]
[1745663137144,7.0211,1808.9,1808.8,2.69985]
[1745663137547,7.0211,1808.9,1808.8,4.26645]
[1745663139243,0.43753267,1810.1,1809.5,2.76227]
[1745663139551,1.6661,1810.1,1810.0,1.10461]
[1745663140047,0.00450007,1810.3,1810.2,1.10449]
[1745663140348,0.00450007,1810.3,1810.2,4.31229]
[1745663142135,5.31250007,1810.3,1810.2,4.31229]
[1745663144449,5.31250007,1810.3,1810.2,3.2078]
[1745663144841,6.97590007,1810.3,1810.2,3.2078]
[1745663145940,6.97590007,1810.3,1810.2,4.31229]
[1745663147753,6.97590007,1810.3,1810.0,4.0071]
[1745663147951,6.97590007,1810.3,1810.2,1.10449]
[1745663151259,6.97590007,1810.3,1810.2,3.2078]
[1745663151260,5.31250007,1810.3,1810.2,3.2078]
[1745663151450,6.96560007,1810.3,1810.2,3.2078]
[1745663151855,6.96560007,1810.3,1810.2,4.31229]
[1745663152752,6.96560007,1810.3,1810.2,3.2078]
[1745663152950,6.96560007,1810.3,1810.2,4.31229]
[1745663153647,6.96560007,1810.3,1810.2,3.2078]
[1745663153851,6.96560007,1810.3,1810.2,4.31229]
[1745663155060,5.31250007,1810.3,1810.2,5.92129]
[1745663155861,3.84168007,1810.3,1810.2,10.92129]
[1745663156251,1.5902,1810.7,1810.6,1.10425]
[1745663157254,6.8982,1810.7,1810.6,1.10425]
[1745663159262,5.308,1810.7,1810.6,2.79495]
[1745663159455,5.308,1810.7,1810.6,3.62685]
[1745663159761,5.308,1810.7,1810.6,1.10425]
[1745663160256,6.41221,1810.7,1810.5,7.0168]
[1745663160462,1.6129,1810.6,1810.5,4.31211]
[1745663161163,6.9209,1810.6,1810.5,4.31211]
[1745663162555,5.308,1810.6,1810.5,4.31211]
[1745663162760,5.308,1810.6,1810.5,5.97581]
[1745663165364,5.308,1810.6,1810.5,4.31211]
[1745663165765,6.094,1810.6,1810.5,4.31211]
[1745663165962,7.742,1810.6,1810.5,4.31211]
[1745663166865,1.10432,1810.5,1810.3,3.2078]
[1745663167065,2.75232,1810.5,1810.3,3.2078]
[1745663167363,8.06032,1810.5,1810.3,4.31219]
[1745663167554,1.648,1810.4,1810.3,4.31219]
[1745663168159,6.956,1810.4,1810.3,4.31219]
[1745663168359,8.06037,1810.4,1810.3,3.2078]
[1745663168861,1.10449,1810.2,1810.1,3.2078]
[1745663169266,6.10449,1810.2,1810.1,3.2078]
[1745663169568,3.65419,1810.2,1810.1,3.2078]
[1745663169759,2.5497,1810.2,1810.1,3.2078]
[1745663169959,2.5497,1810.2,1810.1,4.31235]
[1745663170159,7.8577,1810.2,1810.1,3.2078]
[1745663170766,8.96219,1810.2,1810.1,3.2078]
[1745663171660,7.8577,1810.2,1810.1,4.31235]
[1745663173866,8.96219,1810.2,1810.1,3.2078]
[1745663174061,7.8577,1810.2,1810.1,3.2078]
[1745663174259,8.96219,1810.2,1810.1,3.2078]
[1745663175167,1.10455,1810.1,1810.0,0.0146]
[1745663175367,1.6284,1810.1,1809.9,4.31243]
[1745663176160,1.6284,1810.1,1810.0,1.10461]
[1745663176161,6.9364,1810.1,1810.0,1.10461]
[1745663176570,6.9364,1810.1,1809.9,4.897]
[1745663176571,8.04098,1810.1,1809.9,4.31244]
[1745663176769,1.6284,1810.0,1809.9,4.31244]
[1745663177368,5.308,1810.1,1810.0,1.10461]
[1745663177559,5.308,1810.1,1810.0,2.79381]
[1745663178071,1.10461,1810.0,1809.9,3.2078]
[1745663178265,2.77231,1810.0,1809.9,3.2078]
[1745663178468,3.55601,1810.0,1809.9,3.2078]
[1745663178667,3.55601,1810.0,1809.9,4.31247]
[1745663178668,2.4514,1810.0,1809.9,4.31247]
[1745663179066,7.7594,1810.0,1809.9,4.31247]
[1745663179267,5.308,1810.0,1809.9,9.31247]
[1745663179461,5.308,1810.0,1809.9,4.31247]
[1745663180873,1.6677,1810.1,1810.0,1.10461]
[1745663181072,1.6677,1810.1,1810.0,2.70101]
[1745663181278,6.9757,1810.1,1810.0,2.70101]
[1745663181865,8.08025,1810.1,1809.9,4.31244]
[1745663182167,1.5867,1810.0,1809.9,4.31244]
[1745663182372,2.69131,1810.0,1809.9,4.31244]
[1745663182573,2.69131,1810.0,1809.9,3.2078]
[1745663183173,8.79961,1810.0,1809.9,3.2078]
[1745663186071,8.79961,1810.0,1809.8,0.0146]
[1745663186072,1.10467,1809.9,1809.8,0.0146]
[1745663186271,2.72547,1809.9,1809.8,0.0146]
[1745663186477,1.10474,1809.8,1809.7,3.2078]
[1745663186674,2.72554,1809.8,1809.7,3.2078]
[1745663187071,8.03354,1809.8,1809.7,3.2078]
[1745663189277,6.9288,1809.8,1809.7,3.2078]
[1745663189882,6.9288,1809.8,1809.7,4.3126]
[1745663191378,6.9288,1809.8,1809.7,3.2078]
[1745663191979,8.03354,1809.8,1809.7,3.2078]
[1745663193170,6.9288,1809.8,1809.7,4.3126]
[1745663193373,6.9288,1809.8,1809.7,4.9041]
[1745663193985,8.03354,1809.8,1809.7,3.2078]
[1745663196081,5.308,1809.8,1809.7,4.3126]
[1745663199177,2.6848,1809.9,1809.8,1.10474]
[1745663199381,2.6848,1809.9,1809.8,4.32814]
[1745663199579,1.5801,1809.9,1809.8,4.32814]
[1745663200085,6.8881,1809.9,1809.8,4.32814]
[1745663200282,7.99277,1809.9,1809.8,4.32814]
[1745663200484,6.8881,1809.9,1809.8,4.32814]
[1745663201495,5.308,1809.9,1809.8,4.32814]
[1745663202286,1.5647,1810.0,1809.9,1.10467]
[1745663202487,1.5647,1810.0,1809.9,4.31247]
[1745663202693,5.7314,1810.2,1809.9,3.2078]
[1745663202895,1.6993,1810.1,1810.0,1.1046]
[1745663203492,1.6993,1810.1,1810.0,2.701]
[1745663204195,7.0073,1810.1,1810.0,2.701]
[1745663204995,1.10461,1810.0,1809.8,0.7841]
[1745663205187,1.10474,1809.8,1809.7,3.2078]
[1745663205495,1.10486,1809.6,1809.5,3.2224]
[1745663205892,1.10486,1809.6,1809.5,3.2078]
[1745663206095,8.19225449,1809.6,1809.5,3.2078]
[1745663206298,8.10546,1809.6,1809.5,3.2078]
[1745663207497,8.19225371,1809.6,1809.5,3.2078]
[1745663207995,8.10546,1809.6,1809.5,3.2078]
[1745663208901,8.19225326,1809.6,1809.5,3.2078]
[1745663209602,8.10546,1809.6,1809.5,3.2078]
[1745663210096,1.10492,1809.5,1809.3,3.2078]
[1745663210301,1.10498,1809.4,1809.3,3.2078]
[1745663211197,6.41298,1809.4,1809.3,3.2078]
[1745663214702,1.10504,1809.3,1809.2,2.546]
[1745663214905,2.83114,1809.3,1809.2,5.7538]
[1745663215205,8.13914,1809.3,1809.2,5.7538]
[1745663216297,8.13914,1809.3,1809.2,4.068]
[1745663216502,8.13914,1809.3,1809.2,3.2078]
[1745663220907,8.13914,1809.3,1809.2,4.9117]
[1745663224813,8.13914,1809.3,1809.2,3.2078]
[1745663226708,5.308,1809.3,1809.2,4.3129]
[1745663227213,1.105,1809.4,1809.2,4.3129]
[1745663227413,1.105,1809.4,1809.3,1.6883]
[1745663227613,1.105,1809.4,1809.3,2.5291]
[1745663228209,6.413,1809.4,1809.3,2.5291]
[1745663228417,6.41298,1809.4,1809.3,2.5291]
[1745663233205,6.41298,1809.4,1809.3,5.7369]
[1745663233614,6.41298,1809.4,1809.3,6.84194]
[1745663233809,6.41298,1809.4,1809.3,5.7369]
[1745663234008,5.308,1809.4,1809.3,5.7369]
[1745663234212,5.308,1809.4,1809.3,6.84194]
[1745663240216,6.41298,1809.4,1809.3,6.84194]
[1745663240412,8.00058,1809.4,1809.3,6.84194]
[1745663240616,6.8956,1809.4,1809.3,6.84194]
[1745663241818,6.8956,1809.4,1809.3,6.85654]
[1745663244820,8.00058,1809.4,1809.3,3.2224]
[1745663245016,8.00058,1809.4,1809.3,0.0146]
[1745663245217,1.1051,1809.2,1809.1,3.2078]
[1745663245619,3.64808,1809.3,1809.1,4.31295]
[1745663245918,1.7059,1809.2,1809.1,4.31295]
[1745663246126,8.119,1809.2,1809.1,3.2078]
[1745663248930,7.0139,1809.2,1809.1,4.31296]
[1745663249631,7.0139,1809.2,1809.1,3.2078]
[1745663249938,8.119,1809.2,1809.1,3.2078]
[1745663253533,7.0139,1809.2,1809.1,4.31296]
[1745663253736,7.0139,1809.2,1809.1,5.91036]
[1745663254338,1.7059,1809.2,1809.1,5.91036]
[1745663254728,2.811,1809.2,1809.1,4.8052]
[1745663255135,2.811,1809.2,1809.1,5.91036]
[1745663255944,2.811,1809.2,1809.1,4.8052]
[1745663256744,2.811,1809.2,1809.1,1.5974]
[1745663256940,2.811,1809.2,1809.1,4.8052]
[1745663257243,8.119,1809.2,1809.1,4.8052]
[1745663257543,8.119,1809.2,1809.1,3.2078]
[1745663257931,7.0139,1809.2,1809.1,4.31296]
[1745663258433,7.0139,1809.2,1809.1,5.95936]
[1745663258845,7.0139,1809.2,1809.1,2.75156]
[1745663259143,7.0139,1809.2,1809.1,5.95936]
[1745663260145,1.7059,1809.2,1809.1,5.95936]
[1745663261244,7.0139,1809.2,1809.1,5.95936]
[1745663264341,8.119,1809.2,1809.1,4.31296]
[1745663264652,7.0139,1809.2,1809.1,4.31296]
[1745663269451,5.308,1809.2,1809.1,4.31296]
[1745663269651,5.308,1809.2,1809.1,5.89666]
[1745663270152,1.7275,1809.4,1809.3,1.10504]
[1745663270451,1.7275,1809.4,1809.3,4.31284]
[1745663271144,7.0355,1809.4,1809.3,4.31284]
[1745663271345,7.0355,1809.4,1809.3,4.32744]
[1745663274250,8.14048,1809.4,1809.3,3.2224]
[1745663275048,8.14048,1809.4,1809.3,4.32744]
[1745663277353,7.0355,1809.4,1809.3,4.32744]
[1745663278847,7.0355,1809.4,1809.3,1.11964]
[1745663279855,8.14048,1809.4,1809.3,0.0146]
[1745663281058,7.0355,1809.4,1809.3,4.32744]
[1745663282753,8.14048,1809.4,1809.3,3.2224]
[1745663283256,1.1051,1809.2,1809.1,3.2078]
[1745663283855,2.7475,1809.2,1809.1,3.2078]
[1745663284051,8.14231711,1809.2,1809.1,3.2078]
[1745663284260,8.0555,1809.2,1809.1,3.2078]
[1745663284475,8.14231715,1809.2,1809.1,3.2078]
[1745663286163,8.0555,1809.2,1809.1,3.2078]
[1745663290264,8.0555,1809.2,1809.1,4.0615]
[1745663291566,8.9055,1809.2,1809.1,4.0615]
[1745663293064,8.9055,1809.2,1809.1,0.8537]
[1745663293767,5.308,1809.2,1809.1,0.8537]
[1745663293963,5.308,1809.2,1809.1,3.67626]
[1745663294667,5.308,1809.2,1809.1,8.67626]
[1745663294868,5.308,1809.2,1809.1,3.67626]
[1745663295261,2.71854,1809.3,1809.1,3.67626]
[1745663295570,2.71854,1809.3,1809.2,1.7174]
[1745663296063,8.02654,1809.3,1809.2,1.7174]
[1745663296271,1.1051,1809.2,1809.1,0.8537]
[1745663296466,2.7186,1809.2,1809.1,0.8537]
[1745663297168,8.0266,1809.2,1809.1,2.5643]
[1745663297765,6.9215,1809.2,1809.1,3.66946]
[1745663298070,5.308,1809.2,1809.1,6.87726]
[1745663299764,6.4131,1809.2,1809.1,6.87726]
[1745663299958,5.308,1809.2,1809.1,6.87726]
[1745663300162,1.1051,1809.2,1809.1,5.7721]
[1745663301063,6.4131,1809.2,1809.1,3.2078]
[1745663301666,7.2674,1809.2,1809.1,3.2078]
[1745663301866,8.9071,1809.2,1809.1,3.2078]
[1745663312081,8.99391746,1809.2,1809.1,3.2078]
[1745663312383,1.10529,1808.9,1808.8,2.5308]
[1745663312685,1.10529,1808.9,1808.8,5.7386]
[1745663312880,1.10529,1808.9,1808.8,4.0208]
[1745663316289,6.41329,1808.9,1808.8,4.0208]
[1745663317289,1.10529,1808.9,1808.8,4.0208]
[1745663318086,6.41329,1808.9,1808.8,4.0208]
[1745663318792,6.41329,1808.9,1808.8,0.813]
[1745663319588,7.19759,1808.9,1808.8,0.813]
[1745663319788,7.19759,1808.9,1808.4,44.601]
[1745663319789,10.8675,1808.9,1808.4,3.2078]
[1745663319988,1.10557,1808.5,1808.4,5.7581]
[1745663320985,1.10557,1808.5,1808.4,6.5524]
[1745663321186,6.41357,1808.5,1808.4,6.5524]
[1745663322500,5.308,1808.5,1808.4,7.65799]
[1745663323191,1.10547,1808.6,1808.4,7.65799]
[1745663323393,1.10547,1808.6,1808.5,1.6567]
[1745663327093,6.41347,1808.6,1808.5,1.6567]
[1745663327699,6.41347,1808.6,1808.5,2.76223]
[1745663327895,6.41347,1808.6,1808.5,1.6567]
[1745663328094,1.10547,1808.6,1808.5,1.6567]
[1745663330001,2.67663,1808.7,1808.5,2.7622]
[1745663330403,1.5712,1808.7,1808.6,1.10547]
[1745663332106,6.8792,1808.7,1808.6,1.10547]
[1745663332401,7.98461,1808.7,1808.6,1.10547]
[1745663332605,6.8792,1808.7,1808.6,1.10547]
[1745663332805,6.8792,1808.7,1808.6,4.31327]
[1745663333305,7.98461,1808.7,1808.6,1.10547]
[1745663333599,7.98461,1808.7,1808.5,2.76218]
[1745663333804,1.6929,1808.6,1808.5,2.76218]
[1745663335103,7.0009,1808.6,1808.5,2.76218]
[1745663337095,1.6929,1808.6,1808.5,2.76218]
[1745663339402,9.6211,1808.9,1808.5,1.6567]
[1745663339705,6.4133,1808.9,1808.7,1.10538]
[1745663339905,6.4133,1808.9,1808.8,4.39585]
[1745663342307,6.4133,1808.9,1808.8,3.2905]
[1745663342910,6.4133,1808.9,1808.8,4.39585]
[1745663343614,10.308,1808.9,1807.5,5.918]
[1745663343907,3.2078,1808.2,1808.0,0.8227]
[1745663344107,2.79927,1808.1,1808.0,0.8227]
[1745663344412,1.10592,1807.9,1807.7,1.71]
[1745663344802,1.6935,1807.8,1807.7,1.71]
[1745663345306,0.7908,1808.1,1807.9,1.10585]
[1745663345602,1.6935,1808.0,1807.9,1.10585]
[1745663346509,1.6935,1808.0,1807.8,1.6797]
[1745663346700,1.6935,1808.0,1807.8,2.78563]
[1745663346902,1.1059,1807.9,1807.7,1.106]
[1745663347102,1.6264,1807.8,1807.7,1.106]
[1745663347609,1.6264,1807.8,1807.7,2.7857]
[1745663348009,1.6264,1807.8,1807.7,1.6797]
[1745663348811,1.6264,1807.8,1807.6,2.78975]
[1745663348812,1.6264,1807.8,1807.6,1.6837]
[1745663349012,1.10602,1807.7,1807.6,1.6837]
[1745663349510,1.10602,1807.7,1807.6,3.3544]
[1745663349904,2.73236,1807.8,1807.6,4.46044]
[1745663350099,2.73236,1807.8,1807.7,1.6707]
[1745663351212,1.6264,1807.8,1807.7,1.6707]
[1745663351613,2.73239,1807.8,1807.6,2.78974]
[1745663351817,1.10602,1807.7,1807.6,1.6837]
[1745663352110,2.76482,1807.7,1807.6,1.6837]
[1745663352412,2.5202,1807.7,1807.6,1.6837]
[1745663352811,2.5202,1807.7,1807.3,3.2078]
[1745663353010,1.1062,1807.4,1807.2,4.3787]
[1745663353314,1.6588,1807.3,1807.2,45.1787]
[1745663353513,1.6588,1807.3,1807.2,44.0724]
[1745663353713,2.76506,1807.3,1807.2,44.0724]
[1745663353915,1.10633,1807.2,1807.1,3.2078]
[1745663354211,2.76513,1807.2,1807.1,3.2078]
[1745663354410,3.62653,1807.2,1807.1,3.2078]
[1745663355110,1.1064,1807.1,1806.9,7.31397]
[1745663355413,1.7321,1807.0,1806.9,7.31401]
[1745663355913,1.7321,1807.0,1806.9,3.51901]
[1745663356315,1.7321,1807.0,1806.9,1.10651]
[1745663357117,1.7321,1807.0,1806.9,8.00761]
[1745663359021,0.8614,1807.2,1807.0,1.10643]
[1745663359314,2.70521,1807.3,1807.1,2.3797]
[1745663359710,1.5989,1807.2,1807.1,2.3797]
[1745663359909,2.70523,1807.2,1807.1,0.7908]
[1745663360113,2.70526,1807.2,1807.0,1.10645]
[1745663360308,2.69997977,1807.2,1807.0,1.10645]
[1745663360512,2.69997977,1807.2,1807.1,1.5889]
[1745663362017,1.59361977,1807.2,1807.1,1.5889]
[1745663362820,2.69994977,1807.2,1807.0,1.10645]
[1745663363015,2.69994977,1807.2,1806.9,6.77706]
[1745663363215,1.10633,1807.2,1806.9,6.77706]
[1745663363616,2.3757,1807.1,1806.9,6.77706]
[1745663363813,1.5722,1807.0,1806.9,5.6706]
[1745663364017,1.5722,1807.0,1806.9,5.10511]
[1745663364224,2.67865,1807.0,1806.9,5.308]
[1745663365013,1.5722,1807.0,1806.9,6.41451]
[1745663365219,4.90332,1807.3,1807.0,1.10645]
[1745663365418,1.10633,1807.2,1807.0,1.10645]
[1745663365614,2.82723,1807.2,1807.0,1.10645]
[1745663366215,1.7209,1807.1,1807.0,1.10645]
[1745663367313,1.7209,1807.1,1806.9,2.82448]
[1745663367513,4.90329,1807.3,1807.1,1.10636]
[1745663367708,1.6382,1807.2,1807.1,1.10636]
[1745663367915,1.6382,1807.2,1807.1,1.93166]
[1745663368220,1.6382,1807.2,1807.1,0.8253]
[1745663368522,2.74453,1807.2,1807.1,0.8253]
[1745663368710,2.74453,1807.2,1807.0,4.31421]
[1745663368914,2.74459,1807.1,1807.0,3.2078]
[1745663369320,1.6382,1807.1,1807.0,4.31425]
[1745663369722,1.6382,1807.1,1807.0,3.2078]
[1745663370223,1.6382,1807.1,1807.0,5.98895]
[1745663371922,1.6382,1807.1,1807.0,2.78115]
[1745663373223,1.10631,1807.3,1807.0,1.6747]
[1745663373423,2.67931,1807.3,1807.0,1.6747]
[1745663373824,2.67931,1807.3,1807.2,1.10633]
[1745663374214,2.67931,1807.3,1807.1,1.10636]
[1745663374412,2.67931,1807.3,1807.2,1.10633]
[1745663374612,3.2078,1807.4,1807.3,1.10626]
[1745663374823,1.10616,1807.5,1807.3,1.10622]
[1745663375021,1.10616,1807.5,1807.4,1.1062]
[1745663375223,1.573,1807.5,1807.4,1.1062]
[1745663376126,1.10606,1807.7,1807.5,1.10612]
[1745663376326,2.71906,1807.7,1807.5,1.10612]
[1745663376719,1.613,1807.6,1807.5,1.10612]
[1745663380221,1.613,1807.6,1807.5,1.96852]
[1745663380926,0.813,1807.8,1807.7,1.10602]
[1745663381125,2.435,1807.8,1807.7,1.10602]
[1745663382230,2.435,1807.8,1807.7,1.91602]
[1745663386022,3.2078,1807.9,1807.8,1.10596]
[1745663386222,2.4346,1808.1,1808.0,1.10584]
[1745663387333,3.54037,1808.1,1808.0,1.10584]
[1745663387730,2.4346,1808.1,1808.0,1.10584]
[1745663387932,3.54037,1808.1,1808.0,1.10584]
[1745663388434,1.10584,1808.0,1807.8,1.94054]
[1745663388626,2.67514,1808.0,1807.8,1.94054]
[1745663389126,1.5693,1807.9,1807.8,1.94054]
[1745663389733,1.5693,1807.9,1807.8,3.53584]
[1745663391934,2.6752,1807.9,1807.8,3.53584]
[1745663392128,1.89689,1808.1,1807.9,1.10585]
[1745663392326,2.67604,1808.0,1807.9,1.10585]
[1745663392527,1.5702,1808.0,1807.9,1.10585]
[1745663392926,1.1059,1807.9,1807.8,0.8346]
[1745663393230,1.10596,1807.8,1807.7,0.81]
[1745663393440,3.51546,1807.8,1807.6,7.45973]
[1745663393832,1.5702,1807.7,1807.6,7.45973]
[1745663394535,1.5702,1807.7,1807.6,5.76028]
[1745663395928,1.5702,1807.7,1807.6,7.39208]
[1745663397342,2.67622,1807.7,1807.6,7.39208]
[1745663397839,1.5702,1807.7,1807.6,7.39208]
[1745663398635,1.5702,1807.7,1807.6,3.59808]
[1745663400130,2.67622,1807.7,1807.6,3.59808]
[1745663400444,2.67622,1807.7,1807.6,2.492]
[1745663401329,2.67622,1807.7,1807.6,0.8602]
[1745663401941,2.67622,1807.7,1807.6,1.10608]
[1745663402636,2.67622,1807.7,1807.5,5.155]
[1745663402837,1.5804,1807.6,1807.5,5.155]
[1745663403037,1.5804,1807.6,1807.5,1.9472]
[1745663403342,1.5804,1807.6,1807.5,3.5787]
[1745663404942,1.94527,1807.8,1807.5,3.5787]
[1745663404943,1.94527,1807.8,1807.5,5.6804]
[1745663405248,2.4498,1807.8,1807.7,1.10602]
[1745663405942,3.55579,1807.8,1807.6,2.78985]
[1745663406144,1.10602,1807.7,1807.6,1.6838]
[1745663406343,2.71652,1807.7,1807.6,1.6838]
[1745663406544,1.10614,1807.5,1807.4,0.817]
[1745663406741,1.6151,1807.6,1807.4,0.817]
[1745663407039,1.10614,1807.5,1807.4,0.8041]
[1745663407253,1.10639,1807.1,1806.9,4.31429]
[1745663407539,1.10653,1806.9,1806.7,48.90739]
[1745663407844,1.10653,1806.9,1806.7,8.10739]
[1745663408146,1.6151,1806.8,1806.7,13.41539]
[1745663408339,1.6151,1806.8,1806.7,15.13309]
[1745663409949,1.10642,1807.1,1806.9,1.10651]
[1745663410145,1.6749,1807.0,1806.9,6.41451]
[1745663410547,1.6749,1807.0,1806.9,5.308]
[1745663412847,2.78135,1807.0,1806.9,5.308]
[1745663413245,1.10651,1806.9,1806.8,3.3416]
[1745663413446,2.82291,1806.9,1806.8,3.3416]
[1745663413847,2.82291,1806.9,1806.8,0.8357]
[1745663414248,1.7164,1806.9,1806.8,6.1437]
[1745663414746,2.82291,1806.9,1806.8,6.1437]
[1745663415346,2.82291,1806.9,1806.8,5.308]
[1745663416251,3.64741,1806.9,1806.7,9.75733]
[1745663416443,2.70087,1806.8,1806.7,7.8572]
[1745663416751,2.70087,1806.8,1806.7,4.6494]
[1745663417051,1.10664,1806.7,1806.5,2.73101]
[1745663417349,2.70094,1806.7,1806.5,8.90171]
[1745663417550,2.70094,1806.7,1806.5,49.70171]
[1745663417751,1.5943,1806.6,1806.5,8.90171]
[1745663418045,1.5943,1806.6,1806.5,14.20971]
[1745663418251,1.5943,1806.6,1806.5,8.90171]
[1745663418847,2.70099,1806.6,1806.5,7.795]
[1745663419051,2.70099,1806.6,1806.5,6.1707]
[1745663420144,2.70099,1806.6,1806.5,7.8462]
[1745663420456,1.10658,1806.8,1806.6,1.10665]
[1745663420751,1.10658,1806.8,1806.7,3.63872]
[1745663420752,1.10657,1806.8,1806.7,3.63872]
[1745663420951,1.10657,1806.8,1806.7,2.5321]
[1745663421148,1.10657,1806.8,1806.7,7.8401]
[1745663421744,0.0146,1807.0,1806.9,1.10651]
[1745663422147,0.0146,1807.0,1806.9,6.41451]
[1745663422348,0.0146,1807.0,1806.9,8.13331]
[1745663429656,1.12105,1807.0,1806.9,7.0268]
[1745663429852,1.12105,1807.0,1806.9,5.308]
[1745663430248,1.10651,1806.9,1806.8,4.0037]
[1745663430448,2.80951,1806.9,1806.8,5.5711]
[1745663430848,2.80951,1806.9,1806.8,6.67767]
[1745663431154,1.703,1806.9,1806.8,11.98567]
[1745663431756,2.80951,1806.9,1806.8,11.98567]
[1745663433851,2.80951,1806.9,1806.8,10.8791]
[1745663434157,2.80951,1806.9,1806.8,9.3117]
[1745663435550,1.703,1806.9,1806.8,10.41827]
[1745663435755,1.703,1806.9,1806.8,12.05447]
[1745663435957,0.0146,1807.0,1806.9,1.10651]
[1745663436156,0.0146,1807.0,1806.9,2.74271]
[1745663436356,0.0146,1807.0,1806.9,8.05071]
[1745663437261,1.12105,1807.0,1806.9,6.9442]
[1745663437463,2.80815,1807.0,1806.9,5.308]
[1745663437860,2.79355,1807.0,1806.9,5.308]
[1745663438066,1.6871,1807.0,1806.9,6.41451]
[1745663438266,3.58104,1807.2,1807.0,1.10645]
[1745663438566,3.58104,1807.2,1807.1,3.57009]
[1745663438867,3.59564,1807.2,1807.1,3.57009]
[1745663439465,3.59564,1807.2,1807.1,2.4637]
[1745663440058,3.59564,1807.2,1807.1,3.2707]
[1745663440264,3.59564,1807.2,1807.1,1.5929]
[1745663442270,1.10651,1807.0,1806.8,4.31431]
[1745663442571,1.10651,1807.0,1806.8,5.12241]
[1745663442869,2.77431,1806.9,1806.8,4.0159]
[1745663443065,3.59241,1806.9,1806.8,4.0159]
[1745663443265,3.59241,1806.9,1806.8,9.3239]
[1745663447375,3.59241,1806.9,1806.8,6.1161]
[1745663447777,2.77431,1806.9,1806.8,7.8287]
[1745663451380,2.77431,1806.9,1806.8,8.93527]
[1745663451579,2.77431,1806.9,1806.8,7.8287]
[1745663456091,2.77431,1806.9,1806.8,8.93527]
[1745663458083,2.77431,1806.9,1806.8,7.8287]
[1745663462193,2.77431,1806.9,1806.8,6.1161]
[1745663466489,2.77431,1806.9,1806.8,7.8112]
[1745663469094,4.32889,1807.0,1806.8,8.91777]
[1745663469401,5.93129,1807.0,1806.9,2.4442]
[1745663469793,2.72349,1807.0,1806.9,2.4442]
[1745663470301,2.72349,1807.0,1806.9,7.7522]
[1745663470503,1.617,1807.0,1806.9,8.85871]
[1745663470698,0.0146,1807.0,1806.9,8.85871]
[1745663471296,7.32799,1807.5,1807.2,1.10633]
[1745663471297,1.10624,1807.4,1807.2,1.10633]
[1745663471503,2.79064,1807.4,1807.3,0.8409]
[1745663472896,3.62474,1807.4,1807.3,0.8409]
[1745663478106,3.62474,1807.4,1807.3,2.5685]
[1745663482906,2.79064,1807.4,1807.3,2.5685]
[1745663483803,3.2078,1807.6,1807.5,1.10614]
[1745663484001,4.8392,1807.8,1807.4,1.6349]
[1745663484206,1.6314,1807.8,1807.7,1.10602]
[1745663484407,2.73737,1807.8,1807.5,0.7975]
[1745663484608,2.73737,1807.8,1807.6,43.2355]